bitfinex/quotes_ETHUSD_20260131
["timestamp","ask_amount","ask_price","bid_price","bid_amount"]
[1769869948372,0.49561274,2522.0,2519.9,0.01194006]
[1769869948373,0.99182279,2523.2,2520.2,0.01194006]
[1769869948577,0.99084459,2523.1,2521.2,0.01194006]
[1769869948913,0.99084459,2523.1,2521.0,0.01194006]
[1769869948914,3.95957901,2525.6,2522.9,0.01194006]
[1769869949204,0.3959579,2525.5,2523.9,0.01194006]
[1769869949411,12.69345376,2526.7,2523.7,0.01194006]
[1769869949412,3.95794167,2526.6,2524.0,0.01194006]
[1769869949609,3.95663527,2527.6,2524.6,0.01194006]
[1769869949769,0.49457158,2527.5,2525.2,0.01194006]
[1769869949973,0.49457158,2527.5,2525.6,0.01194006]
[1769869950211,0.9888067,2528.3,2525.2,0.01194006]
[1769869950414,0.9885721,2528.9,2526.7,0.01194006]
[1769869950612,0.9885721,2528.9,2526.0,0.01194006]
[1769869950613,0.9885721,2528.9,2526.1,0.01194006]
[1769869950813,0.9885721,2528.9,2525.8,0.01194006]
[1769869950814,0.49428605,2528.8,2526.2,0.01194006]
[1769869951116,0.49428605,2528.8,2525.4,0.01194006]
[1769869951117,12.70539382,2528.4,2525.5,0.01194006]
[1769869951323,12.70539382,2528.4,2524.8,0.01194006]
[1769869951324,4.722598,2528.3,2524.8,0.01194006]
[1769869951526,12.70539382,2528.3,2525.3,0.01194006]
[1769869951844,12.69345376,2527.8,2524.8,0.01194006]
[1769869951988,0.11434006,2527.6,2525.1,0.01194006]
[1769869952189,0.1024,2527.5,2525.3,0.01194006]
[1769869952420,1.28077938,2527.6,2525.4,0.01194006]
[1769869952630,0.01194006,2528.1,2525.1,0.01194006]
[1769869952940,1.75354524,2528.2,2525.8,0.01194006]
[1769869953150,0.96390322,2528.1,2526.1,0.01194006]
[1769869953294,0.001,2528.1,2526.7,0.01194006]
[1769869953495,0.0180972,2530.4,2527.9,0.01194006]
[1769869953728,0.0180972,2530.4,2528.6,0.01194006]
[1769869953901,0.0180972,2530.4,2528.1,0.01194006]
[1769869953902,1.10987191,2529.9,2528.1,0.01194006]
[1769869954103,0.12165543,2529.9,2527.9,0.01194006]
[1769869954419,0.12165543,2529.9,2528.0,0.01194006]
[1769869954633,0.12165543,2529.9,2527.8,0.01194006]
[1769869954802,0.12165543,2529.9,2528.0,0.01194006]
[1769869954998,0.12165543,2529.9,2528.4,0.01194006]
[1769869955198,0.0180972,2530.4,2529.2,0.01194006]
[1769869955429,0.0180972,2530.4,2528.8,0.01194006]
[1769869955595,1.00609035,2530.4,2527.9,0.01194006]
[1769869955933,0.0180972,2530.4,2528.7,0.01194006]
[1769869956442,0.0180972,2530.4,2529.1,0.01194006]
[1769869956636,12.70539382,2532.3,2529.8,0.01194006]
[1769869956637,0.01194006,2532.3,2529.8,0.01194006]
[1769869956932,0.01194006,2532.3,2529.5,0.01194006]
[1769869956933,0.98840121,2531.9,2529.9,0.01194006]
[1769869957130,0.98840121,2531.9,2529.1,0.01194006]
[1769869957131,0.98840587,2531.9,2529.4,0.01194006]
[1769869957433,0.49379181,2531.8,2529.7,0.01194006]
[1769869957635,0.49379181,2531.8,2530.1,0.01194006]
[1769869957841,0.001,2531.9,2530.7,0.01194006]
[1769869958047,0.001,2531.9,2529.9,0.98816578]
[1769869958433,0.01194006,2531.6,2529.2,3.95378254]
[1769869958634,0.01194006,2531.2,2529.0,0.01194006]
[1769869958841,0.01194006,2531.5,2529.1,0.01194006]
[1769869959028,0.01194006,2530.7,2527.6,0.01194006]
[1769869959225,0.01194006,2530.4,2527.7,0.01194006]
[1769869959446,0.01194006,2530.0,2527.8,0.01194006]
[1769869959648,0.01194006,2529.8,2527.2,1.00115809]
[1769869959856,0.99993285,2530.4,2527.7,0.01194006]
[1769869960156,0.01194006,2531.2,2528.0,0.01194006]
[1769869960318,0.98779248,2530.9,2528.3,0.01194006]
[1769869960511,0.01194006,2530.4,2527.7,0.01194006]
[1769869960821,0.01194006,2530.2,2527.7,0.01194006]
[1769869961023,0.01194006,2530.2,2527.5,0.01194006]
[1769869961024,13.53270875,2530.1,2527.5,0.01194006]
[1769869961344,0.01194006,2528.9,2526.2,0.01194006]
[1769869961545,0.01194006,2528.9,2525.5,0.01194006]
[1769869961546,0.01194006,2528.1,2525.5,0.01194006]
[1769869961734,0.01194006,2528.3,2526.1,0.01194006]
[1769869962041,1.00075045,2528.3,2525.7,0.01194006]
[1769869962245,0.01194006,2528.1,2525.7,0.49731991]
[1769869962542,0.01194006,2527.7,2524.6,0.01194006]
[1769869962745,0.01194006,2527.5,2525.5,0.98990068]
[1769869962921,0.01194006,2527.9,2524.9,0.01194006]
[1769869962922,0.01194006,2527.7,2524.9,0.01194006]
[1769869963121,0.01194006,2527.4,2525.5,0.9899002]
[1769869963327,0.01194006,2528.5,2526.0,0.01194006]
[1769869963556,0.01194006,2528.6,2525.8,0.01194006]
[1769869963843,0.01194006,2528.6,2525.3,4.06201195]
[1769869963844,0.01194006,2527.0,2524.1,0.01194006]
[1769869964031,0.01194006,2526.7,2524.1,3.97363756]
[1769869964345,0.01194006,2527.5,2525.5,0.98988883]
[1769869964548,0.01194006,2528.3,2525.6,0.01194006]
[1769869964850,0.01194006,2528.6,2526.2,0.01194006]
[1769869965146,0.01194006,2529.0,2526.7,0.01194006]
[1769869965454,0.01194006,2528.0,2525.5,1.00292889]
[1769869965750,0.01194006,2527.8,2525.8,0.01194006]
[1769869965916,0.01194006,2528.3,2526.1,0.01194006]
[1769869966241,1.00019953,2529.7,2527.0,0.01194006]
[1769869966543,0.01194006,2529.5,2527.1,0.01194006]
[1769869966731,6.91410878,2529.9,2527.1,0.01194006]
[1769869966732,2.34261289,2530.0,2527.5,0.01194006]
[1769869966923,0.01194006,2530.1,2527.8,0.01194006]
[1769869967124,0.01194006,2530.1,2527.5,0.01194006]
[1769869967435,0.01194006,2529.8,2527.3,0.01194006]
[1769869967638,0.01194006,2529.8,2527.5,0.98911968]
[1769869967933,0.01194006,2530.0,2527.8,0.01194006]
[1769869968139,0.01194006,2530.0,2527.6,0.01194006]
[1769869968140,1.00011586,2530.0,2528.1,0.01194006]
[1769869968335,1.00011586,2530.0,2527.4,3.96841879]
[1769869968336,0.01194006,2529.6,2527.1,0.01194006]
[1769869968649,1.00011586,2530.0,2526.5,0.01194006]
[1769869968650,0.01194006,2529.5,2527.0,0.01194006]
[1769869968850,0.01194006,2529.5,2526.7,0.01194006]
[1769869968851,13.54464881,2529.1,2526.7,0.01194006]
[1769869969144,0.01194006,2528.7,2526.7,0.98943019]
[1769869969332,0.01194006,2528.7,2526.1,0.01194006]
[1769869969333,0.01194006,2529.0,2526.4,0.01194006]
[1769869969541,0.50720856,2529.9,2527.4,0.98915349]
[1769869969712,0.01194006,2529.0,2526.6,0.98947201]
[1769869969914,0.01194006,2528.9,2526.6,1.00141207]
[1769869970117,0.01194006,2529.1,2526.8,0.01194006]
[1769869970356,1.4970492,2529.1,2526.6,1.00141207]
[1769869970517,7.39743722,2529.9,2527.0,0.01194006]
[1769869970518,1.00019953,2529.8,2527.0,0.01194006]
[1769869970718,0.01194006,2529.2,2526.8,0.01194006]
[1769869971037,0.01194006,2529.4,2527.4,0.01194006]
[1769869971235,0.01194006,2529.2,2526.6,1.00141207]
[1769869971545,0.01194006,2528.7,2526.6,1.88239727]
[1769869971743,0.01194006,2529.0,2526.6,0.01194006]
[1769869971944,0.01194006,2529.0,2526.8,0.01194006]
[1769869972133,0.01194006,2528.8,2526.6,0.01194006]
[1769869972332,0.01194006,2528.8,2526.8,0.01194006]
[1769869972648,0.01194006,2528.4,2526.2,0.01194006]
[1769869972847,0.01194006,2528.4,2526.2,0.49722194]
[1769869973017,0.01194006,2528.6,2526.3,0.01194006]
[1769869973218,6.90216872,2530.3,2527.6,0.01194006]
[1769869973447,1.00005339,2530.1,2527.7,0.01194006]
[1769869973641,0.01194006,2531.1,2528.3,0.01194006]
[1769869973828,0.99983078,2530.7,2528.4,1.00070766]
[1769869974027,0.99983078,2530.7,2528.4,0.9887676]
[1769869974028,0.01194006,2530.5,2528.4,0.9887676]
[1769869974218,0.01194006,2530.4,2528.4,0.9887676]
[1769869974416,0.98786752,2530.8,2528.4,0.9887676]
[1769869974417,0.01194006,2529.9,2528.4,0.9887676]
[1769869974658,0.01194006,2530.1,2528.4,0.9887676]
[1769869974858,0.01194006,2529.9,2528.3,0.98879673]
[1769869975020,0.01194006,2530.1,2528.3,0.98879673]
[1769869975216,0.01194006,2530.7,2528.4,0.01194006]
[1769869975415,0.01194006,2530.6,2528.6,0.01194006]
[1769869975721,0.99961389,2531.2,2528.5,0.98872849]
[1769869975916,1.77170843,2531.2,2528.7,0.01194006]
[1769869976229,0.001,2531.7,2529.5,0.01194006]
[1769869976553,0.001,2531.7,2529.3,0.01194006]
[1769869976554,0.001,2531.7,2530.0,0.01194006]
[1769869976719,0.001,2531.7,2530.2,0.01194006]
[1769869977048,0.001,2531.9,2530.6,0.01194006]
[1769869977254,0.001,2531.9,2530.0,0.01194006]
[1769869977428,0.001,2531.9,2529.5,0.01194006]
[1769869977630,0.001,2531.9,2529.8,0.01194006]
[1769869977830,0.77037335,2531.8,2529.1,0.01194006]
[1769869978146,0.001,2531.9,2529.0,0.98853301]
[1769869978147,0.01294006,2531.5,2529.0,0.98853301]
[1769869978352,0.01194006,2531.2,2529.0,1.00047307]
[1769869978650,0.01194006,2531.2,2529.0,1.88060074]
[1769869978840,0.01194006,2530.8,2529.0,1.88060074]
[1769869979028,0.96326633,2531.2,2529.1,0.01194006]
[1769869979230,0.01194006,2530.9,2529.0,0.98853301]
[1769869979432,0.01194006,2531.1,2529.0,1.00047307]
[1769869979619,0.001,2531.5,2529.7,0.01194006]
[1769869979951,0.001,2531.5,2530.0,0.98814229]
[1769869980319,0.01194006,2530.4,2527.9,0.01194006]
[1769869980520,0.01194006,2531.4,2529.9,0.98817906]
[1769869980828,0.01194006,2530.2,2529.2,0.98842286]
[1769869981032,0.01194006,2529.4,2527.3,0.98919795]
[1769869981234,0.01194006,2529.4,2526.4,0.01304006]
[1769869981235,0.01194006,2529.0,2527.4,0.49459898]
[1769869981536,0.97036811,2529.4,2527.2,0.98922983]
[1769869981858,1.284507,2529.6,2527.3,0.98918322]
[1769869981859,0.01194006,2528.7,2527.3,0.98918322]
[1769869982156,0.01194006,2529.1,2527.3,0.98918322]
[1769869982370,0.01194006,2528.9,2526.4,0.0011]
[1769869982540,0.01194006,2527.7,2526.4,0.0011]
[1769869982723,0.01194006,2527.3,2526.4,0.0011]
[1769869982924,0.01194006,2527.1,2526.1,0.0011]
[1769869983126,0.01194006,2528.1,2526.1,0.0011]
[1769869983326,0.97036811,2528.0,2526.2,0.01194006]
[1769869983532,2.07165518,2528.2,2526.2,0.01194006]
[1769869983533,0.97036811,2528.8,2526.8,0.01194006]
[1769869983833,0.01194006,2528.4,2526.1,0.0011]
[1769869984036,0.01194006,2529.0,2526.8,0.01194006]
[1769869984037,0.98230817,2529.0,2526.8,0.01194006]
[1769869984252,0.01194006,2528.4,2526.2,0.01194006]
[1769869984450,0.01194006,2529.2,2527.5,0.98911931]
[1769869984731,0.01194006,2528.2,2526.1,0.0011]
[1769869985080,0.01194006,2528.2,2525.7,0.0011]
[1769869985081,0.01194006,2526.9,2525.7,0.0011]
[1769869985287,0.01194006,2526.6,2525.5,0.0011]
[1769869985445,0.01194006,2526.2,2525.1,0.0011]
[1769869985631,0.01194006,2526.2,2523.8,0.99055747]
[1769869985632,0.01194006,2525.6,2523.8,0.99055747]
[1769869985832,0.01194006,2525.6,2522.5,12.67267145]
[1769869985833,0.01194006,2524.7,2522.3,3.96459542]
[1769869986052,0.01194006,2525.4,2523.0,0.99088298]
[1769869986053,0.97036811,2525.4,2523.0,0.99088298]
[1769869986258,0.01194006,2525.3,2523.0,0.99088298]
[1769869986471,0.01194006,2525.3,2523.1,0.01194006]
[1769869986664,1.30694528,2526.1,2523.1,0.01194006]
[1769869986665,0.01194006,2526.0,2523.4,0.01194006]
[1769869986848,0.01194006,2526.4,2524.0,0.01194006]
[1769869987061,0.01194006,2526.4,2523.1,0.01194006]
[1769869987062,0.01194006,2525.6,2523.1,0.01194006]
[1769869987262,0.01194006,2525.2,2522.9,3.96353547]
[1769869987426,0.01194006,2524.3,2522.3,0.99114157]
[1769869987627,0.01194006,2523.5,2521.3,3.96607394]
[1769869987842,0.01194006,2523.5,2520.9,3.97868793]
[1769869987843,0.01194006,2523.1,2520.9,3.97868793]
[1769869988042,0.01194006,2523.5,2520.9,3.97868793]
[1769869988043,0.97036811,2525.6,2522.6,0.01194006]
[1769869988262,0.01194006,2524.7,2521.9,0.01194006]
[1769869988471,8.87443628,2525.4,2521.9,0.01194006]
[1769869988472,0.98230817,2525.7,2522.9,0.01194006]
[1769869988787,0.01571134,2525.7,2523.6,0.01194006]
[1769869988946,0.97036811,2527.2,2524.7,0.01194006]
[1769869989141,0.01194006,2526.8,2524.8,0.01194006]
[1769869989346,0.97036811,2527.9,2525.4,0.01194006]
[1769869989663,0.01194006,2527.4,2525.0,0.01194006]
[1769869989862,0.01194006,2527.5,2525.1,0.99005979]
[1769869990078,0.01194006,2527.8,2525.3,0.01194006]
[1769869990252,0.01194006,2528.2,2525.7,0.01194006]
[1769869990446,0.01194006,2527.8,2525.6,0.01194006]
[1769869990645,0.01194006,2527.6,2525.1,1.00199985]
[1769869990953,0.01194006,2527.5,2525.1,0.99005979]
[1769869991166,0.01194006,2527.1,2525.1,0.99005979]
[1769869991368,0.01194006,2527.5,2525.2,0.01194006]
[1769869991539,0.01194006,2528.0,2525.7,0.01194006]
[1769869991879,0.98868963,2528.6,2526.0,0.01194006]
[1769869992049,0.97718551,2529.2,2526.7,0.01194006]
[1769869992254,0.01194006,2529.0,2526.8,0.01194006]
[1769869992484,0.01194006,2529.0,2526.5,0.01194006]
[1769869992640,0.01194006,2529.0,2526.7,0.01194006]
[1769869992840,0.01194006,2528.6,2526.4,0.01194006]
[1769869993080,0.01194006,2529.4,2527.0,0.01194006]
[1769869993252,0.97718551,2530.5,2527.7,0.01194006]
[1769869993585,13.42188338,2531.4,2529.2,0.01194006]
[1769869993743,0.01194006,2531.4,2529.1,0.98849393]
[1769869993945,0.01194006,2531.4,2529.1,1.00043399]
[1769869994145,0.001,2531.5,2529.4,0.01194006]
[1769869994443,0.001,2531.9,2530.6,0.01194006]
[1769869994669,0.97718551,2533.6,2531.0,0.01194006]
[1769869994890,0.97718551,2533.9,2531.4,0.01194006]
[1769869995193,0.97718551,2534.2,2531.2,0.01194006]
[1769869995398,0.97718551,2534.2,2531.3,0.01194006]
[1769869995399,0.99847058,2534.2,2531.3,0.01194006]
[1769869995552,0.99847058,2534.2,2530.6,0.01194006]
[1769869995553,0.01194006,2533.2,2530.6,0.01194006]
[1769869995752,0.01194006,2533.2,2530.9,0.9877909]
[1769869996057,0.01194006,2533.0,2530.9,0.9877909]
[1769869996256,0.01194006,2533.0,2530.5,0.01194006]
[1769869996257,0.01194006,2531.8,2527.8,13.12684378]
[1769869996464,13.42188338,2531.8,2529.7,3.95289556]
[1769869996679,0.01194006,2531.5,2528.9,0.01194006]
[1769869996846,0.01194006,2530.2,2528.2,0.98884581]
[1769869997051,0.01194006,2529.8,2528.2,0.98884581]
[1769869997294,0.01194006,2529.3,2526.8,3.96944154]
[1769869997449,0.01194006,2528.5,2526.1,0.01194006]
[1769869997655,0.01194006,2528.5,2525.2,2.10241791]
[1769869997656,0.46580443,2529.2,2528.1,0.98887691]
[1769869997881,13.42188338,2529.7,2526.4,3.97010085]
[1769869998145,1.34218834,2529.6,2527.8,0.98899078]
[1769869998351,13.42188338,2529.7,2527.7,0.98901993]
[1769869998584,1.94250783,2530.4,2527.8,0.98899392]
[1769869998585,0.96439547,2530.3,2527.8,0.98899392]
[1769869998754,0.96439547,2530.3,2527.4,0.01194006]
[1769869998755,13.42188338,2530.0,2527.4,0.01194006]
[1769869998951,13.42188338,2530.0,2526.1,0.01194006]
[1769869998952,13.42188338,2529.4,2526.9,0.98932019]
[1769869999150,13.42188338,2529.4,2526.6,0.01194006]
[1769869999352,13.42188338,2528.5,2525.5,3.97153299]
[1769869999550,13.42188338,2528.5,2525.3,0.01194006]
[1769869999551,13.42188338,2528.5,2526.0,0.01194006]
[1769869999774,0.9888067,2528.3,2525.7,3.97116874]
[1769869999979,0.98851729,2529.1,2526.4,0.01194006]
[1769870000165,0.01194006,2529.3,2526.8,0.01194006]
[1769870000364,0.01194006,2529.3,2526.0,0.01194006]
[1769870000365,0.01194006,2528.6,2525.7,3.95922868]
[1769870000652,0.01194006,2528.4,2525.8,14.99490533]
[1769870000962,13.43382344,2528.8,2526.4,0.01194006]
[1769870001170,13.43382344,2528.8,2526.3,0.01194006]
[1769870001485,0.01194006,2528.5,2526.4,14.5]
[1769870001881,0.01194006,2529.2,2526.8,0.01194006]
[1769870002185,0.01194006,2528.4,2526.4,0.98953447]
[1769870002386,0.01194006,2529.2,2526.6,0.01194006]
[1769870002571,0.01194006,2528.8,2526.7,14.5]
[1769870002775,0.01194006,2529.1,2526.7,14.5]
[1769870002977,0.01194006,2528.9,2526.7,15.95]
[1769870003291,0.01194006,2529.3,2526.7,15.95]
[1769870003587,0.01194006,2529.3,2526.8,0.01194006]
[1769870003762,0.98818082,2530.0,2527.4,0.98915881]
[1769870003964,0.96439547,2530.5,2527.7,0.01194006]
[1769870004169,0.01194006,2531.5,2528.7,0.01194006]
[1769870004498,12.79437208,2531.9,2528.5,0.01194006]
[1769870004499,0.96439547,2532.3,2529.5,0.01194006]
[1769870004684,0.01194006,2530.9,2527.3,3.95663527]
[1769870004993,0.01194006,2531.5,2527.3,3.95663527]
[1769870004994,6.90216872,2531.9,2529.1,0.01194006]
[1769870005153,0.01194006,2532.6,2529.9,0.01194006]
[1769870005359,1.88682758,2532.6,2529.9,0.01194006]
[1769870005558,0.01194006,2532.6,2530.1,0.01194006]
[1769870005758,0.01194006,2533.0,2530.2,1.00000424]
[1769870005988,0.97633553,2533.5,2530.9,0.01194006]
[1769870006295,13.43382344,2534.2,2531.6,0.01194006]
[1769870006451,2.43827654,2534.2,2531.6,0.01194006]
[1769870006656,14.40836395,2534.3,2531.0,0.01194006]
[1769870006898,0.01194006,2534.0,2531.4,0.01194006]
[1769870007059,0.01194006,2534.0,2531.7,14.5]
[1769870007398,0.01194006,2534.4,2531.7,14.5]
[1769870007697,0.01194006,2533.4,2531.8,1.45]
[1769870007988,0.01194006,2534.0,2532.0,0.2335703]
[1769870008192,0.01194006,2534.4,2532.0,0.66205741]
[1769870008393,8.81968551,2535.7,2532.0,0.66205741]
[1769870008394,0.12165543,2535.7,2532.7,0.2335703]
[1769870008606,0.12165543,2535.7,2532.9,0.01194006]
[1769870008899,1.00406221,2535.6,2532.0,0.67399747]
[1769870009069,6.88308597,2535.1,2532.1,14.5]
[1769870009270,0.0180972,2535.6,2532.1,14.5]
[1769870009495,0.0180972,2535.6,2532.9,0.01194006]
[1769870009661,0.0180972,2535.6,2533.5,0.01194006]
[1769870009861,0.0180972,2535.6,2533.6,0.01194006]
[1769870010107,0.0180972,2535.6,2533.7,14.5]
[1769870010706,0.0180972,2535.6,2533.1,0.98692105]
[1769870010707,13.42188338,2535.4,2533.1,0.98692105]
[1769870010907,13.42188338,2535.4,2533.3,0.98683541]
[1769870011401,0.0180972,2535.6,2533.9,0.01194006]
[1769870011696,0.0180972,2535.6,2533.5,0.01194006]
[1769870011899,0.0180972,2535.6,2533.6,0.01194006]
[1769870012101,0.0180972,2535.6,2534.0,14.5]
[1769870012275,0.0180972,2535.6,2533.3,0.98683541]
[1769870012476,13.43998058,2535.6,2533.3,0.98683541]
[1769870012674,0.0180972,2535.6,2533.3,0.98683541]
[1769870013001,0.0180972,2535.6,2534.2,0.01194006]
[1769870013186,0.0180972,2535.6,2533.4,14.5]
[1769870013390,0.0180972,2535.6,2533.5,1.56181761]
[1769870013589,1.00406571,2535.6,2533.4,14.5]
[1769870013792,14.42594449,2535.6,2533.4,15.4867909]
[1769870014017,13.42188338,2534.9,2532.9,0.98697832]
[1769870014168,13.42188338,2534.9,2533.1,3.94757741]
[1769870014370,1.00407246,2535.6,2533.4,0.98680319]
[1769870014670,0.5749582,2535.6,2533.8,0.01194006]
[1769870014881,0.5749582,2535.6,2533.5,0.01194006]
[1769870015082,0.5749582,2535.6,2534.0,0.01194006]
[1769870015282,0.5749582,2535.6,2534.1,14.5]
[1769870015573,0.5749582,2535.6,2533.5,0.50654991]
[1769870015574,0.5749582,2535.6,2533.5,0.49460985]
[1769870015771,0.5749582,2535.6,2533.4,0.98680319]
[1769870015772,14.98283105,2535.6,2532.5,0.01194006]
[1769870016005,14.98283105,2535.6,2530.8,1.91567177]
[1769870016006,13.42188338,2535.5,2532.4,0.01194006]
[1769870016207,14.92016649,2535.4,2533.0,0.9869662]
[1769870016522,1.56094767,2535.6,2531.8,5.39972888]
[1769870016523,13.42188338,2535.1,2532.3,3.9488963]
[1769870016724,13.42188338,2534.9,2531.8,1.45]
[1769870016895,1.56094767,2535.6,2531.8,14.5]
[1769870016896,13.31212567,2534.1,2531.8,14.5]
[1769870017070,13.20972567,2533.6,2532.0,0.987336]
[1769870017270,13.20972567,2533.6,2530.6,0.01194006]
[1769870017503,13.20972567,2533.6,2529.8,3.96476326]
[1769870017504,13.20972567,2533.6,2531.9,3.94948153]
[1769870017835,0.98677718,2533.5,2530.9,3.95112578]
[1769870017986,13.20972567,2533.6,2531.0,0.01194006]
[1769870018327,14.19647447,2533.6,2531.2,0.01194006]
[1769870018533,14.19647447,2533.6,2531.0,0.50821974]
[1769870018810,14.19647447,2533.6,2531.0,0.49627968]
[1769870019039,14.19647447,2533.6,2531.2,0.01194006]
[1769870019183,13.31212567,2534.1,2531.4,0.01194006]
[1769870019384,0.98642676,2534.4,2531.8,0.01194006]
[1769870019582,13.31212567,2534.2,2531.1,0.44474055]
[1769870019812,13.20972567,2533.8,2531.2,0.98767383]
[1769870020126,13.20972567,2534.0,2531.4,0.01194006]
[1769870020337,0.98645148,2534.4,2531.2,0.98767383]
[1769870020338,13.20972567,2533.5,2531.2,0.98767383]
[1769870020487,13.20972567,2533.5,2531.3,0.53831097]
[1769870020848,13.97769981,2534.4,2531.8,0.01194006]
[1769870021128,14.9641379,2534.4,2531.5,0.01194006]
[1769870021327,21.09691908,2534.4,2531.6,0.01194006]
[1769870021583,18.23909981,2533.7,2531.3,0.53831097]
[1769870021709,13.97769981,2533.4,2531.3,0.53831097]
[1769870021894,13.97769981,2533.1,2531.1,1.432447]
[1769870022212,16.77437081,2533.0,2530.8,0.98780278]
[1769870022420,14.08009981,2532.8,2530.5,0.98792383]
[1769870022734,14.08009981,2532.6,2530.5,0.98792167]
[1769870023030,0.98683814,2533.4,2529.6,0.01194006]
[1769870023031,0.96439547,2533.5,2531.3,0.98761133]
[1769870023331,18.13669981,2533.9,2531.4,0.49381506]
[1769870023627,18.13669981,2533.7,2531.4,0.49381506]
[1769870023849,0.98650461,2534.2,2531.5,0.99949684]
[1769870023991,13.97769981,2533.4,2531.4,0.49381506]
[1769870024194,16.81527581,2533.3,2530.2,0.01194006]
[1769870024395,16.81527581,2533.3,2529.9,0.01194006]
[1769870024396,13.97769981,2532.8,2530.5,0.9879313]
[1769870024635,14.08009981,2532.7,2529.9,0.01194006]
[1769870024943,14.08009981,2532.7,2529.7,0.01194006]
[1769870024944,13.97769981,2532.7,2531.1,0.98770809]
[1769870025091,13.97769981,2532.7,2530.5,0.9879213]
[1769870025293,13.97769981,2532.4,2530.1,3.95239691]
[1769870025499,13.97769981,2532.4,2529.2,0.01194006]
[1769870025500,4.159,2532.3,2529.3,0.01194006]
[1769870025724,14.08009981,2532.4,2530.5,0.98794582]
[1769870025889,0.986933,2533.1,2530.0,0.01194006]
[1769870026092,0.9304,2533.1,2530.3,0.01194006]
[1769870026311,13.97769981,2533.3,2530.6,0.01194006]
[1769870026527,15.79258911,2533.3,2530.7,0.01194006]
[1769870026732,13.97769981,2533.1,2529.9,0.01194006]
[1769870027037,14.08009981,2533.0,2529.7,0.98825947]
[1769870027338,13.97769981,2532.0,2529.7,0.98825947]
[1769870027550,13.97769981,2531.6,2529.7,0.88944204]
[1769870027704,13.97769981,2531.6,2529.6,0.98829454]
[1769870027705,14.08009981,2532.5,2529.6,0.98829454]
[1769870027894,0.1024,2532.8,2529.8,1.00016047]
[1769870028093,13.97769981,2532.6,2529.8,0.98822041]
[1769870028329,13.97769981,2532.6,2529.9,0.01194006]
[1769870028534,13.97769981,2532.6,2529.8,0.98822041]
[1769870028824,0.96439547,2533.7,2530.9,0.01194006]
[1769870028999,6.88597045,2533.4,2530.3,0.01194006]
[1769870029219,3.49872098,2533.6,2530.1,0.01194006]
[1769870029220,13.97769981,2533.6,2530.9,0.01194006]
[1769870029527,6.88597045,2534.1,2530.9,0.01194006]
[1769870029528,1.26869351,2534.6,2531.8,0.01194006]
[1769870029838,14.96412657,2534.4,2531.2,0.98767383]
[1769870030035,13.97769981,2533.9,2529.7,0.49414887]
[1769870030221,13.97769981,2533.9,2529.6,0.0011]
[1769870030222,13.97769981,2532.3,2529.9,0.0011]
[1769870030410,14.08009981,2532.1,2529.9,0.0011]
[1769870030732,13.97769981,2531.1,2529.6,0.0011]
[1769870030935,15.37546979,2531.1,2529.6,0.0011]
[1769870031154,0.1024,2531.0,2527.2,13.66959126]
[1769870031440,13.97769981,2531.1,2528.3,0.01194006]
[1769870031606,13.97769981,2531.1,2528.1,3.9674178]
[1769870031805,0.1024,2530.9,2528.2,0.98884581]
[1769870032016,0.77210512,2530.8,2528.3,0.49442291]
[1769870032242,0.1024,2530.9,2528.3,0.49442291]
[1769870032417,0.1024,2530.9,2527.2,3.95685386]
[1769870032418,13.97769981,2530.6,2527.2,3.95685386]
[1769870032610,13.97769981,2530.4,2527.8,0.98897228]
[1769870032808,13.97769981,2530.2,2528.1,0.98887945]
[1769870033040,0.77340497,2530.1,2528.1,0.98887945]
[1769870033230,0.77340497,2530.0,2528.1,0.98888098]
[1769870033432,0.96439547,2530.5,2528.8,0.01194006]
[1769870033650,2.57398788,2531.2,2528.6,0.01194006]
[1769870033651,0.96439547,2531.2,2529.0,0.01194006]
[1769870033939,0.96439547,2531.6,2529.1,0.01194006]
[1769870034140,0.1024,2531.4,2529.1,0.49665452]
[1769870034346,0.96439547,2531.3,2529.0,0.98853301]
[1769870034553,0.77419295,2531.2,2529.0,0.98853301]
[1769870034756,13.97769981,2530.9,2527.7,0.01194006]
[1769870034936,16.15990274,2530.8,2528.9,0.98856526]
[1769870035115,16.15990274,2530.8,2528.7,3.95459186]
[1769870035116,13.97769981,2530.0,2527.1,0.3988695]
[1769870035310,13.97769981,2530.0,2526.8,3.97048143]
[1769870035311,0.01194006,2528.8,2527.8,0.989001]
[1769870035516,0.01194006,2529.6,2527.8,0.989001]
[1769870035945,0.98833761,2529.5,2527.5,0.98911968]
[1769870036121,0.01194006,2529.8,2527.5,0.98911968]
[1769870036613,0.01194006,2529.6,2527.5,0.98911968]
[1769870036810,0.01194006,2529.8,2527.5,0.98911968]
[1769870037947,0.01194006,2529.8,2527.4,3.95647873]
[1769870038148,1.00016926,2529.8,2527.5,0.49575776]
[1769870038351,0.01194006,2529.8,2527.5,0.49575776]
[1769870038847,0.01194006,2529.8,2527.6,0.01194006]
[1769870039172,0.01194006,2529.8,2527.5,0.49575776]
[1769870039173,0.01194006,2529.2,2527.0,13.66959126]
[1769870039447,0.01194006,2529.2,2527.3,0.98919629]
[1769870039448,13.97769981,2529.1,2527.3,0.98919629]
[1769870039648,0.01194006,2529.4,2527.1,3.95710097]
[1769870039849,0.9885118,2529.1,2527.0,14.65889619]
[1769870040014,0.98848165,2529.2,2527.1,1.76386323]
[1769870040219,0.01194006,2528.8,2527.0,14.65889619]
[1769870040428,1.00018619,2529.8,2527.5,0.01194006]
[1769870040632,1.00016222,2529.8,2527.3,0.01194006]
[1769870040838,1.00017568,2529.8,2527.3,0.01194006]
[1769870041039,0.01194006,2529.5,2527.0,1.00124499]
[1769870041214,0.01194006,2529.5,2527.2,0.01194006]
[1769870041425,0.98796878,2530.5,2528.1,0.01194006]
[1769870041643,0.98796878,2530.5,2527.6,0.01194006]
[1769870041644,0.01194006,2530.3,2527.6,0.01194006]
[1769870041845,0.01194006,2530.4,2527.9,0.98896317]
[1769870042044,0.01194006,2530.3,2527.9,0.98896317]
[1769870042245,0.01194006,2530.3,2528.0,0.50642165]
[1769870042555,0.01194006,2531.4,2528.8,0.01194006]
[1769870042758,0.01194006,2531.4,2529.0,0.01194006]
[1769870042923,0.01194006,2531.4,2528.4,0.01194006]
[1769870042924,13.98963987,2531.1,2528.4,0.01194006]
[1769870043123,0.01194006,2529.9,2526.8,0.01304006]
[1769870043350,0.01194006,2529.9,2527.8,0.9889944]
[1769870043528,1.91344614,2530.6,2527.8,0.9889944]
[1769870043529,0.97633553,2530.7,2528.4,0.01194006]
[1769870043730,0.01194006,2531.2,2528.6,0.01194006]
[1769870043955,0.01194006,2531.5,2529.0,0.01194006]
[1769870044230,0.01194006,2531.6,2529.2,0.01194006]
[1769870044629,0.84094006,2531.9,2529.0,0.01194006]
[1769870044630,0.77306668,2531.5,2529.0,0.01194006]
[1769870044868,0.01194006,2531.6,2528.7,1.00059035]
[1769870045158,15.80604256,2531.9,2529.3,0.01194006]
[1769870045159,0.97633553,2531.9,2529.3,0.01194006]
[1769870045356,2.0277862,2532.2,2529.5,0.01194006]
[1769870045357,0.77330147,2531.8,2529.5,0.01194006]
[1769870045572,0.78524153,2531.7,2529.3,0.01194006]